fUSD/lending_fUSD_20240113
["ID","MTS","AMOUNT","RATE_DAILY","PERIOD"]
[311503689,1705165866497,-606.27,0.00022983,2]
[311503690,1705165866507,-606.27,0.00022983,2]
[311503691,1705165866517,-606.27,0.00022983,2]
[311503692,1705165866527,-606.27,0.00022983,2]
[311503693,1705165866539,-500.0,0.00022983,2]
[311503694,1705165866552,-347.52,0.00022983,2]
[311503695,1705165866563,-500.0,0.00022983,5]
[311503696,1705165866573,-500.0,0.00022983,5]
[311503697,1705165866583,-500.0,0.00022983,5]
[311503698,1705165866593,-654.13,0.00022983,2]
[311503699,1705165866603,-654.13,0.00022983,2]
[311503700,1705165866613,-654.13,0.00022983,2]
[311503701,1705165866624,-654.13,0.00022983,2]
[311503702,1705165866634,-23038.25326049,0.00022984,2]
[311503703,1705165866969,-3827.80084233,0.00022984,2]
[311503704,1705165866985,-871.4711906,0.00022984,2]
[311503705,1705165867168,-841.68,0.00022251,2]
[311503706,1705165867399,-1244.95978318,0.00022251,2]
[311503707,1705165867410,-518.36073288,0.00022251,2]
[311503708,1705165867420,-2016.82656347,0.00022251,2]
[311503709,1705165867430,-9160.55215924,0.00022252,2]
[311503710,1705165867505,-500.0,0.00022252,2]
[311503711,1705165867514,-500.0,0.00022252,2]
[311503712,1705165867524,-644.16649651,0.00022252,2]
[311503713,1705165867533,-1839.54,0.00022252,2]
[311503714,1705165867545,-500.0,0.00022253,2]
[311503715,1705165867554,-500.0,0.00022253,2]
[311503716,1705165867563,-418.48,0.00022253,2]
[311503717,1705165867573,-500.0,0.00022253,2]
[311503718,1705165867582,-500.0,0.00022253,2]
[311503719,1705165867592,-672.33941213,0.000229,2]
[311503720,1705165867602,-241590.65853288,0.00022984,2]
[311503721,1705165867611,-126131.07610364,0.00022984,2]
[311503722,1705165867622,-441.505952,0.00022984,2]
[311503723,1705165867634,-519.17084233,0.00022984,2]
[311503724,1705165867655,-960.767779,0.00022252,2]
[311503725,1705165867666,-733.96190716,0.00022252,2]
[311503726,1705165867846,-930.71615116,0.00022251,2]
[311503727,1705165867856,-144.81031384,0.00022252,2]
[311503728,1705165867865,-500.0,0.00022252,2]
[311503729,1705165867874,-500.0,0.00022252,2]
[311503730,1705165867883,-104.6022344,0.00022252,2]
[311503731,1705165867894,-395.3977656,0.00022252,2]
[311503732,1705165867904,-1601.76063453,0.00022253,2]
[311503733,1705165867915,-237.77936547,0.00022253,2]
[311503734,1705165867925,-738.97113461,0.00022253,2]
[311503735,1705165867942,-677.73828809,0.00022253,2]
[311503736,1705165867953,-422.8305773,0.00022253,2]
[311503737,1705165867962,-500.0,0.00022253,2]
[311503738,1705165867971,-500.0,0.00022253,2]
[311503739,1705165867980,-500.0,0.00022253,2]
[311503740,1705165867989,-500.0,0.00022253,2]
[311503741,1705165867998,-350.26,0.00022253,2]
[311503742,1705165868008,-766.9094227,0.00022254,2]
[311503743,1705165868020,-458.0,0.00022254,2]
[311503744,1705165868366,200.0,0.00021345,2]
[311503745,1705165881873,180708.20052022,0.00022153,2]
[311503746,1705165890859,163.17,0.00021958,2]
[311503753,1705165927933,472.67225037,0.00022051,2]
[311503754,1705165932912,472.67225027,0.00022096,2]
[311503755,1705165945529,176.74,0.00021461,2]
[311503757,1705165983277,724.46,0.00021291,2]
[311503758,1705165985829,161.52869736,0.00022884,6]
[311503759,1705165990990,161.52869735,0.00022888,6]
[311503760,1705165992579,151.26,0.00021431,2]
[311503761,1705165992777,151.0,0.00022999,7]
[311503762,1705165992979,151.26,0.00021543,2]
[311503763,1705165993050,272.46886,0.00023,7]
[311503764,1705165993374,151.26,0.00021654,2]
[311503765,1705165993601,151.26,0.00021766,2]
[311503766,1705165993819,151.26,0.00021878,2]
[311503767,1705165994043,151.26,0.00021989,2]
[311503768,1705165994249,151.26,0.00022101,2]
[311503769,1705165996009,161.52869735,0.00022892,6]
[311503770,1705166001266,161.52869735,0.00022896,6]
[311503771,1705166005834,161.52869735,0.000229,6]
[311503772,1705166006409,151.0,0.00022999,7]
[311503773,1705166006668,151.0,0.00023,7]
[311503774,1705166006943,151.0,0.00023,7]
[311503775,1705166009078,151.0,0.00022999,7]
[311503776,1705166009337,151.0,0.00023,7]
[311503777,1705166009592,151.0,0.00023,7]
[311503778,1705166009840,352.1,0.000214,2]
[311503779,1705166017797,151.0,0.00022999,7]
[311503780,1705166018063,151.0,0.00023,7]
[311503781,1705166018334,151.0,0.00023,7]
[311503782,1705166020250,256.56,0.00021254,2]
[311503783,1705166021532,256.56,0.00021391,2]
[311503784,1705166022811,512.56,0.00021528,2]
[311503785,1705166027279,156.33,0.00021475,2]
[311503786,1705166036339,617.16990183,0.00022052,2]
[311503787,1705166041342,617.16990182,0.00022078,2]
[311503788,1705166059107,155.0,0.00022102,2]
[311503790,1705166066475,332.562218,0.00022999,7]
[311503791,1705166066723,332.562218,0.00023,7]
[311503792,1705166067039,332.562218,0.00023,7]
[311503794,1705166070148,332.562218,0.00022999,7]
[311503795,1705166070412,332.562218,0.00023,7]
[311503796,1705166070663,332.562218,0.00023,7]
[311503799,1705166080137,14657.80009096,0.00022096,2]
[311503800,1705166083936,151.0,0.00022999,7]
[311503801,1705166084201,151.0,0.00023,7]
[311503802,1705166084458,151.0,0.00023,7]
[311503803,1705166085683,603.28,0.00021242,2]
[311503804,1705166087320,151.0,0.00022999,7]
[311503805,1705166087577,157.214768,0.00023,7]
[311503806,1705166102169,151.0,0.00022999,7]
[311503807,1705166102479,151.0,0.00023,7]
[311503808,1705166102813,151.0,0.00023,7]
[311503811,1705166106196,151.0,0.00022999,7]
[311503813,1705166106482,151.0,0.00023,7]
[311503815,1705166106770,151.0,0.00023,7]
[311503820,1705166113908,277.38,0.00021234,2]
[311503821,1705166114140,277.38,0.00021345,2]
[311503822,1705166114327,277.38,0.00021457,2]
[311503823,1705166114562,277.38,0.00021569,2]
[311503824,1705166116146,277.38,0.00021681,2]
[311503825,1705166116349,277.38,0.00021793,2]
[311503826,1705166116559,277.38,0.00021904,2]
[311503827,1705166116827,277.38,0.00022016,2]
[311503837,1705166141615,155.0,0.00022102,2]
[311503839,1705166146890,29275.8689,0.00022006,2]
[311503840,1705166151898,350.58,0.00019322,2]
[311503841,1705166152111,350.58,0.00021586,2]
[311503842,1705166171837,370.3019411,0.00022028,2]
[311503843,1705166176851,370.30194109,0.00022059,2]
[311503844,1705166181803,370.30194109,0.00022091,2]
[311503845,1705166190373,949.2171,0.0002298,7]
[311503846,1705166190650,949.2171,0.00022984,7]
[311503847,1705166190902,949.2171,0.00023,7]
[311503848,1705166191177,949.2171,0.00023,7]
[311503849,1705166193437,949.2171,0.0002298,7]
[311503850,1705166193711,949.2171,0.00022984,7]
[311503851,1705166194199,949.2171,0.00023,7]
[311503852,1705166194253,949.2171,0.00023,7]
[311503853,1705166196977,282.595631,0.0002298,7]
[311503854,1705166198191,178.70636724,0.00022028,2]
[311503855,1705166213802,738.170764,0.0002298,7]
[311503856,1705166214087,738.170764,0.00022984,7]
[311503857,1705166214695,215.38,0.00021231,2]
[311503858,1705166214962,738.170764,0.00023,7]
[311503859,1705166215257,738.170764,0.00023,7]
[311503860,1705166217367,738.170764,0.0002298,7]
[311503861,1705166217652,738.170764,0.00022984,7]
[311503862,1705166217984,738.170764,0.00023,7]
[311503863,1705166218258,738.170764,0.00023,7]
[311503864,1705166237050,151.0,0.0002298,7]
[311503865,1705166237295,151.0,0.00022984,7]
[311503866,1705166237631,151.0,0.00023,7]
[311503867,1705166238257,151.0,0.00023,7]
[311503868,1705166240188,151.0,0.0002298,7]
[311503869,1705166240440,151.0,0.00022984,7]
[311503870,1705166241061,151.0,0.00023,7]
[311503871,1705166241323,151.0,0.00023,7]
[311503873,1705166257900,2000.0,0.00021221,2]
[311503874,1705166266075,413.8604,0.00022006,2]
[311503875,1705166273036,250.0,0.00021221,2]
[311503878,1705166300737,151.0,0.0002298,7]
[311503879,1705166300803,151.0,0.00022984,7]
[311503880,1705166301083,151.0,0.00023,7]
[311503881,1705166301356,215.949623,0.00023,7]
[311503882,1705166302130,370.30194109,0.00022028,2]
[311503883,1705166303701,479.2052,0.00022006,2]
[311503884,1705166309126,151.0,0.0002298,7]
[311503885,1705166309752,151.0,0.00022984,7]
[311503886,1705166310021,151.0,0.00023,7]
[311503887,1705166310270,151.0,0.00023,7]
[311503888,1705166338494,396139.9083,0.00022006,2]
[311503889,1705166353680,178.70636724,0.00022028,2]
[311503891,1705166361989,1000.0,0.00022006,2]
[311503892,1705166363363,426.790995,0.0002298,7]
[311503893,1705166363626,426.790995,0.00022984,7]
[311503894,1705166363878,426.790995,0.00023,7]
[311503895,1705166364149,426.790995,0.00023,7]
[311503896,1705166366644,426.790995,0.0002298,7]
[311503897,1705166366943,426.790995,0.00022984,7]
[311503898,1705166367210,426.790995,0.00023,7]
[311503899,1705166367541,426.790995,0.00023,7]
[311503901,1705166376659,1000.0,0.00022006,2]
[311503902,1705166382519,210.722783,0.0002298,7]
[311503903,1705166382802,210.722783,0.00022984,7]
[311503904,1705166383629,210.722783,0.00023,7]
[311503905,1705166383700,210.722783,0.00023,7]
[311503906,1705166385723,210.722783,0.0002298,7]
[311503907,1705166386039,210.722783,0.00022984,7]
[311503908,1705166386876,210.722783,0.00023,7]
[311503909,1705166387154,210.722783,0.00023,7]
[311503910,1705166398186,151.0,0.0002298,7]
[311503911,1705166398487,151.0,0.00022984,7]
[311503912,1705166398774,151.0,0.00023,7]
[311503913,1705166399229,151.0,0.00023,7]
[311503914,1705166401133,151.0,0.0002298,7]
[311503915,1705166401406,151.0,0.00022984,7]
[311503916,1705166401742,151.0,0.00023,7]
[311503917,1705166402065,151.0,0.00023,7]
[311503918,1705166416144,729.7444,0.00022006,2]
[311503919,1705166416742,151.26,0.00021379,2]
[311503920,1705166416981,151.26,0.0002175,2]
[311503921,1705166418225,187.608119,0.0002298,7]
[311503922,1705166418521,187.608119,0.00022984,7]
[311503923,1705166418787,187.608119,0.00023,7]
[311503924,1705166419066,187.608119,0.00023,7]
[311503925,1705166421035,187.608119,0.0002298,7]
[311503926,1705166421315,187.608119,0.00022984,7]
[311503927,1705166421584,187.608119,0.00023,7]
[311503928,1705166421843,187.608119,0.00023,7]
[311503930,1705166478932,25000.0,0.00023,6]
[311503931,1705166484151,569.53026,0.0002298,7]
[311503932,1705166484424,569.53026,0.00022984,7]
[311503933,1705166484686,569.53026,0.00023,7]
[311503934,1705166484942,569.53026,0.00023,7]
[311503935,1705166486941,569.53026,0.0002298,7]
[311503936,1705166487019,569.53026,0.00022984,7]
[311503937,1705166487285,569.53026,0.00023,7]
[311503938,1705166487313,676.16,0.00021217,2]
[311503939,1705166487535,569.53026,0.00023,7]
[311503940,1705166487609,2500.0,0.00022006,2]
[311503941,1705166493719,210.0,0.00021693,2]
[311503942,1705166499092,178.70636724,0.00022053,2]
[311503943,1705166499430,442.902459,0.0002298,7]
[311503944,1705166499678,442.902459,0.00022984,7]
[311503945,1705166499942,442.902459,0.00023,7]
[311503946,1705166500285,442.902459,0.00023,7]
[311503947,1705166502884,442.902459,0.0002298,7]
[311503948,1705166503203,442.902459,0.00022984,7]
[311503949,1705166503802,442.902459,0.00023,7]
[311503950,1705166504062,442.902459,0.00023,7]
[311503951,1705166506669,517.37,0.00021219,2]
[311503952,1705166513238,151.0,0.0002298,7]
[311503953,1705166513509,151.0,0.00022984,7]
[311503954,1705166513979,151.0,0.00023,7]
[311503955,1705166514275,151.0,0.00023,7]
[311503956,1705166516169,151.0,0.0002298,7]
[311503957,1705166516413,281.402697,0.00022984,7]
[311503958,1705166518141,370.30194109,0.00022053,2]
[311503959,1705166520861,151.0,0.0002298,7]
[311503960,1705166521136,237.356162,0.00022984,7]
[311503961,1705166525736,151.0,0.0002298,7]
[311503962,1705166525995,151.0,0.00022984,7]
[311503963,1705166526275,151.0,0.00023,7]
[311503964,1705166526533,151.0,0.00023,7]
[311503965,1705166528421,1000.0,0.00022006,2]
[311503966,1705166533647,151.0,0.0002298,7]
[311503967,1705166533919,151.0,0.00022984,7]
[311503968,1705166534175,151.0,0.00023,7]
[311503969,1705166534425,151.0,0.00023,7]
[311503970,1705166549381,173.55,0.0002122,2]
[311503971,1705166611886,1000.0,0.00022006,2]
[311503972,1705166616286,358.796085,0.00022981,7]
[311503973,1705166616568,358.796085,0.00022984,7]
[311503974,1705166616831,358.796085,0.00023,7]
[311503975,1705166617099,358.796085,0.00023,7]
[311503976,1705166619076,358.796085,0.00022981,7]
[311503977,1705166619340,358.796085,0.00022984,7]
[311503978,1705166619604,358.796085,0.00023,7]
[311503979,1705166619863,358.796085,0.00023,7]
[311503980,1705166621604,5360.1275,0.00022005,2]
[311503982,1705166631918,182.25574,0.00022981,7]
[311503983,1705166633521,182.25574,0.00022984,7]
[311503984,1705166634135,182.25574,0.00023,7]
[311503985,1705166634410,182.25574,0.00023,7]
[311503986,1705166635180,178.70636724,0.00022052,2]
[311503987,1705166636184,182.25574,0.00022981,7]
[311503988,1705166636427,182.25574,0.00022984,7]
[311503989,1705166636736,182.25574,0.00023,7]
[311503990,1705166636984,182.25574,0.00023,7]
[311503992,1705166647273,315.52,0.00019301,2]
[311503993,1705166647474,315.52,0.00021565,2]
[311503994,1705166650950,276182.1732,0.00022005,2]
[311503997,1705166716301,151.0,0.00022981,7]
[311503998,1705166719606,151.0,0.00022981,7]
[311503999,1705166719879,151.0,0.00022984,7]
[311504000,1705166720148,274.728445,0.00023,7]
[311504002,1705166735879,151.0,0.00022981,7]
[311504003,1705166736149,151.0,0.00022984,7]
[311504004,1705166736426,151.0,0.00023,7]
[311504005,1705166736698,151.0,0.00023,7]
[311504006,1705166738496,215.38,0.00021214,2]
[311504007,1705166749702,151.0,0.00022981,7]
[311504008,1705166749955,151.0,0.00022984,7]
[311504009,1705166750215,238.793444,0.00023,7]
[311504011,1705166761202,178.70636724,0.00022052,2]
[311504012,1705166785274,341.718156,0.00022983,7]
[311504013,1705166785511,341.718156,0.00022984,7]
[311504014,1705166785773,341.718156,0.00023,7]
[311504015,1705166786023,341.718156,0.00023,7]
[311504016,1705166787908,341.718156,0.00022983,7]
[311504017,1705166788162,341.718156,0.00022984,7]
[311504018,1705166788415,341.718156,0.00023,7]
[311504019,1705166788672,341.718156,0.00023,7]
[311504022,1705166798960,265.741475,0.00022983,7]
[311504023,1705166799239,265.741475,0.00022984,7]
[311504024,1705166799507,265.741475,0.00023,7]
[311504025,1705166799986,265.741475,0.00023,7]
[311504026,1705166802095,265.741475,0.00022983,7]
[311504027,1705166802351,265.741475,0.00022984,7]
[311504028,1705166802593,265.741475,0.00023,7]
[311504029,1705166802849,265.741475,0.00023,7]
[311504030,1705166812987,151.0,0.00022983,7]
[311504031,1705166813595,151.0,0.00022984,7]
[311504032,1705166813849,151.0,0.00023,7]
[311504033,1705166814109,151.0,0.00023,7]
[311504034,1705166815966,151.0,0.00022983,7]
[311504035,1705166816353,151.0,0.00022984,7]
[311504036,1705166816602,151.0,0.00023,7]
[311504037,1705166816868,151.0,0.00023,7]
[311504038,1705166826250,151.0,0.00022983,7]
[311504039,1705166826514,151.0,0.00022984,7]
[311504040,1705166826780,151.0,0.00023,7]
[311504041,1705166827055,151.0,0.00023,7]
[311504042,1705166829721,151.0,0.00022983,7]
[311504043,1705166830398,151.0,0.00022984,7]
[311504044,1705166830654,151.0,0.00023,7]
[311504045,1705166831112,195.206504,0.00023,7]
[311504046,1705166839575,151.0,0.00022983,7]
[311504047,1705166839839,151.0,0.00022984,7]
[311504048,1705166840129,151.0,0.00023,7]
[311504049,1705166840399,151.0,0.00023,7]
[311504050,1705166842205,151.0,0.00022983,7]
[311504051,1705166843213,151.0,0.00022984,7]
[311504052,1705166843392,183.58419,0.00023,7]
[311504053,1705166875465,1000.0,0.00022005,2]
[311504054,1705166883055,151.26,0.00021366,2]
[311504055,1705166901330,256.074597,0.00022983,7]
[311504056,1705166901587,256.074597,0.00022984,7]
[311504057,1705166901840,256.074597,0.00023,7]
[311504058,1705166902103,256.074597,0.00023,7]
[311504059,1705166904293,256.074597,0.00022983,7]
[311504060,1705166904550,256.074597,0.00022984,7]
[311504061,1705166904813,256.074597,0.00023,7]
[311504062,1705166905435,256.074597,0.00023,7]
[311504063,1705166913873,151.0,0.00022983,7]
[311504064,1705166914027,151.0,0.00022984,7]
[311504065,1705166914284,151.0,0.00023,7]
[311504066,1705166914538,151.0,0.00023,7]
[311504067,1705166923319,151.0,0.00022983,7]
[311504068,1705166923590,151.0,0.00022984,7]
[311504069,1705166923875,151.0,0.00023,7]
[311504070,1705166924160,151.0,0.00023,7]
[311504071,1705166926491,151.0,0.00022983,7]
[311504072,1705166926758,151.0,0.00022984,7]
[311504073,1705166927069,151.0,0.00023,7]
[311504074,1705166927339,151.0,0.00023,7]
[311504075,1705166931387,151.0,0.00022983,7]
[311504076,1705166932022,151.0,0.00022984,7]
[311504077,1705166932079,151.0,0.00023,7]
[311504078,1705166932283,211.6393,0.00023,7]
[311504079,1705166934458,154.050382,0.00022983,7]
[311504080,1705166946556,586.1,0.00021217,2]
[311504081,1705166957172,151.0,0.00022983,7]
[311504082,1705166957444,151.0,0.00022984,7]
[311504083,1705166957699,151.0,0.00023,7]
[311504084,1705166957955,151.0,0.00023,7]
[311504085,1705166965321,151.0,0.00022983,7]
[311504086,1705166965610,151.0,0.00022984,7]
[311504087,1705166966458,151.0,0.00023,7]
[311504088,1705166966716,151.0,0.00023,7]
[311504093,1705166972512,151.0,0.00022983,7]
[311504094,1705166972762,151.0,0.00022984,7]
[311504095,1705166973036,151.0,0.00023,7]
[311504096,1705166973526,151.0,0.00023,7]
[311504097,1705166977492,151.0,0.00022983,7]
[311504098,1705166977749,151.0,0.00022984,7]
[311504099,1705166978005,151.0,0.00023,7]
[311504100,1705166978256,281.359533,0.00023,7]
[311504101,1705167000488,3579.7252,0.00022005,2]
[311504102,1705167006250,631.08,0.00021219,2]
[311504103,1705167008412,433.34103374,0.00022004,2]
[311504104,1705167013392,433.3410337,0.00022012,2]
[311504105,1705167018379,433.3410337,0.0002202,2]
[311504106,1705167023438,433.3410337,0.00022027,2]
[311504107,1705167025458,232.793553,0.00022983,7]
[311504108,1705167025693,232.793553,0.00022984,7]
[311504109,1705167025964,232.793553,0.00023,7]
[311504110,1705167026241,232.793553,0.00023,7]
[311504111,1705167026542,161.16,0.00021425,2]
[311504112,1705167028208,232.793553,0.00022983,7]
[311504113,1705167028381,433.3410337,0.00022035,2]
[311504114,1705167028464,232.793553,0.00022984,7]
[311504115,1705167028722,232.793553,0.00023,7]
[311504116,1705167028976,232.793553,0.00023,7]
[311504119,1705167032218,-406.45312757,0.00022103,2]
[311504120,1705167032332,-356.66741562,0.00022103,2]
[311504121,1705167032342,-108.73744422,0.00022103,2]
[311504122,1705167032354,-144.84418085,0.00022103,2]
[311504123,1705167032363,-300.0,0.00022103,2]
[311504124,1705167032372,-150.0,0.00022103,2]
[311504125,1705167032381,-150.0,0.00022103,2]
[311504126,1705167032390,-175.14852125,0.00022103,2]
[311504127,1705167032399,-500.0,0.00022104,2]
[311504128,1705167032409,-500.0,0.00022104,2]
[311504129,1705167032418,-500.0,0.00022104,2]
[311504130,1705167032427,-2887.95,0.00022104,2]
[311504131,1705167032436,-500.0,0.00022104,2]
[311504132,1705167032445,-500.0,0.00022104,2]
[311504133,1705167032454,-500.0,0.00022104,2]
[311504134,1705167032464,-500.0,0.00022104,2]
[311504135,1705167032473,-500.0,0.00022104,2]
[311504136,1705167032482,-500.0,0.00022104,2]
[311504137,1705167032491,-516.63,0.00022104,2]
[311504138,1705167032500,-500.0,0.00022104,2]
[311504139,1705167032509,-500.0,0.00022104,2]
[311504140,1705167032518,-500.0,0.00022104,2]
[311504141,1705167032528,-1614.72,0.00022104,2]
[311504142,1705167032537,-500.0,0.00022104,2]
[311504143,1705167032546,-500.0,0.00022104,2]
[311504144,1705167032555,-500.0,0.00022104,2]
[311504145,1705167032564,-500.0,0.00022104,2]
[311504146,1705167032573,-500.0,0.00022104,2]
[311504147,1705167032582,-180.47,0.00022104,2]
[311504148,1705167032591,-500.0,0.00022104,2]
[311504149,1705167032600,-500.0,0.00022104,2]
[311504150,1705167032609,-500.0,0.00022104,2]
[311504151,1705167032618,-500.0,0.00022104,5]
[311504152,1705167032627,-500.0,0.00022104,2]
[311504153,1705167032636,-500.0,0.00022104,2]
[311504154,1705167032646,-500.0,0.00022104,2]
[311504155,1705167032656,-1520.31,0.00022104,2]
[311504156,1705167032665,-500.0,0.00022104,2]
[311504157,1705167032674,-500.0,0.00022104,2]
[311504158,1705167032682,-1401.4,0.00022104,2]
[311504159,1705167032691,-500.0,0.00022104,2]
[311504160,1705167032701,-500.0,0.00022104,2]
[311504161,1705167032710,-500.0,0.00022104,2]
[311504162,1705167032719,-500.0,0.00022104,2]
[311504163,1705167032728,-500.0,0.00022104,2]
[311504164,1705167032737,-624.24,0.00022104,2]
[311504165,1705167032746,-500.0,0.00022104,2]
[311504166,1705167032755,-258.77909786,0.00022104,2]
[311504167,1705167032764,-500.0,0.00022105,2]
[311504168,1705167032773,-500.0,0.00022105,2]
[311504169,1705167032783,-500.0,0.00022105,2]
[311504170,1705167032792,-500.0,0.00022105,2]
[311504171,1705167032801,-512.22377493,0.00022105,2]
[311504172,1705167032809,-500.0,0.00022105,2]
[311504173,1705167032818,-500.0,0.00022105,2]
[311504174,1705167032827,-500.0,0.00022105,2]
[311504175,1705167032837,-500.0,0.00022105,2]
[311504176,1705167032846,-500.0,0.00022105,2]
[311504177,1705167032855,-500.0,0.00022105,2]
[311504178,1705167032864,-500.0,0.00022105,2]
[311504179,1705167032873,-500.0,0.00022105,2]
[311504180,1705167032882,-500.0,0.00022105,2]
[311504181,1705167032891,-500.0,0.00022105,2]
[311504182,1705167032900,-500.0,0.00022105,2]
[311504183,1705167032909,-500.0,0.00022105,2]
[311504184,1705167032919,-500.0,0.00022105,2]
[311504185,1705167032928,-500.0,0.00022105,2]
[311504186,1705167032937,-500.0,0.00022105,2]
[311504187,1705167032946,-585.28301834,0.00022105,2]
[311504188,1705167032955,-530.2598772,0.00022105,2]
[311504189,1705167032964,-500.0,0.00022105,2]
[311504190,1705167032973,-409.79310844,0.00022105,2]
[311504191,1705167032983,-500.0,0.00022105,2]
[311504192,1705167032992,-500.0,0.00022105,2]
[311504193,1705167033000,-500.0,0.00022105,2]
[311504194,1705167033009,-600.378831,0.00022105,2]
[311504195,1705167033018,-500.0,0.00022105,2]
[311504196,1705167033027,-500.0,0.00022105,2]
[311504197,1705167033037,-500.0,0.00022105,2]
[311504198,1705167033046,-500.0,0.00022105,2]
[311504199,1705167033057,-500.0,0.00022105,2]
[311504200,1705167033066,-500.0,0.00022105,2]
[311504201,1705167033075,-500.0,0.00022105,2]
[311504202,1705167033085,-500.0,0.00022105,2]
[311504203,1705167033095,-500.0,0.00022105,2]
[311504204,1705167033104,-500.0,0.00022105,2]
[311504205,1705167033115,-500.0,0.00022105,2]
[311504206,1705167033125,-500.0,0.00022105,2]
[311504207,1705167033135,-500.0,0.00022105,2]
[311504208,1705167033146,-500.0,0.00022105,2]
[311504209,1705167033156,-500.0,0.00022105,2]
[311504210,1705167033166,-500.0,0.00022105,2]
[311504211,1705167033175,-500.0,0.00022105,2]
[311504212,1705167033184,-503.6426192,0.00022105,2]
[311504213,1705167033194,-500.0,0.00022105,2]
[311504214,1705167033204,-500.0,0.00022105,2]
[311504215,1705167033213,-623.49429703,0.00022105,2]
[311504216,1705167033222,-500.0,0.00022105,2]
[311504217,1705167033232,-500.0,0.00022105,2]
[311504218,1705167033241,-500.0,0.00022105,2]
[311504219,1705167033251,-533.23159118,0.00022105,2]
[311504220,1705167033260,-500.0,0.00022105,2]
[311504221,1705167033270,-500.0,0.00022105,2]
[311504222,1705167033280,-500.0,0.00022105,2]
[311504223,1705167033290,-500.0,0.00022105,2]
[311504224,1705167033299,-500.0,0.00022105,2]
[311504225,1705167033308,-500.0,0.00022105,2]
[311504226,1705167033317,-500.0,0.00022105,2]
[311504227,1705167033326,-500.0,0.00022105,2]
[311504228,1705167033334,-500.0,0.00022105,2]
[311504229,1705167033343,-500.0,0.00022105,2]
[311504230,1705167033352,-500.0,0.00022105,2]
[311504231,1705167033360,-500.0,0.00022105,2]
[311504232,1705167033369,-500.0,0.00022105,2]
[311504233,1705167033378,-500.0,0.00022105,2]
[311504234,1705167033387,-500.0,0.00022105,2]
[311504235,1705167033397,-500.0,0.00022105,2]
[311504236,1705167033406,-500.0,0.00022105,2]
[311504237,1705167033416,-500.0,0.00022105,2]